[Event "Romanian Rapid Open 2022"]
[Site "Sebes"]
[Date "2022.12.02"]
[Round "7.3"]
[White "Cosma, Ioan"]
[Black "Dragomirescu, Robin-Alexandru"]
[Result "0-1"]
[ECO "E94"]
[WhiteElo "2368"]
[BlackElo "2337"]
[Annotator "TA"]
[PlyCount "122"]
[EventDate "2022.12.02"]
[EventType "rapid"]
[EventCountry "ROU"]
[SourceTitle "playchess.com"]
[Source "ChessBase"]
[SourceQuality "1"]
[TimeControl "600+5"]

{[%evp 14,122,64,36,40,29,91,93,89,53,131,78,88,63,69,43,48,45,67,18,42,12,11,11,11,11,9,0,16,14,50,4,19,-8,-13,-27,-20,-46,-46,-40,-44,-65,-24,-27,10,0,0,-15,0,0,7,0,0,0,0,0,0,0,0,0,0,0,0,0,150,-7,0,-87,-104,-168,-131,-356,-62,-72,-33,-47,-47,-26,0,-114,-119,-255,-248,-260,-240,-252,-253,-278,-278,-254,-250,-266,-239,-633,-635,-624,-304,-786,-673,-703,-695,-763,-746,-712,-710,-5185,-5110,-2262,-1756,-29991,-29992]} 1. Nf3 {[%emt 0:00:00]} Nf6 {[%emt 0:00:08]} 2. c4 {[%emt 0:00:03]} g6 {[%emt 0:00:05]} 3. Nc3 {[%emt 0:00:01]} Bg7 {[%emt 0:00:01]} 4. e4 {[%emt 0:00:02]} d6 {[%emt 0:00:04]} 5. d4 {[%emt 0:00:02]} O-O {[%emt 0:00:07]} 6. Be2 {[%emt 0:00:01]} e5 {[%emt 0:00:22]} 7. O-O {[%emt 0:00:03]} Nh5 {[%emt 0:00:01]} 8. g3 {[%emt 0:00:13]} (8. Bg5 $5 {[%cal Rg5d8]} f6 9. Be3 $14) 8... Bg4 {[%emt 0:01:56] E94: King's Indian: Classical: 6 Be2 e5 7 0-0: Various Black 7th moves.} 9. Bg5 {[%emt 0:01:03]} f6 {[%emt 0:00:55]} (9... Qc8 $11) 10. Be3 $16 {[%emt 0:00:02]} Nc6 {[%emt 0:00:22] [#] White is better.} 11. c5 $146 {[%emt 0:00:30]} (11. d5 {simplifies} Ne7 12. Rc1 c5 13. a3) ({Predecessor:} 11. d5 Ne7 12. c5 a6 13. Rc1 Qe8 14. Qb3 g5 15. Qxb7 Nf4 16. Bxf4 gxf4 17. Qxc7 dxc5 {½-½ (57) Fang,Y (2435)-Ilincic,Z (2405) Kecskemet 2016}) 11... Kh8 {[%emt 0:01:11]} (11... f5 $14) 12. cxd6 {[%emt 0:00:20]} (12. d5 $142) 12... cxd6 {[%emt 0:00:01]} 13. dxe5 {[%emt 0:00:29]} dxe5 {[%emt 0:00:08]} 14. Qxd8 {[%emt 0:00:18]} Rfxd8 {[%emt 0:00:12]} 15. Rfd1 {[%emt 0:00:03]} Bf8 {[%emt 0:00:57]} 16. Kf1 {[%emt 0:00:54]} (16. Kg2 $14 {feels stronger.}) 16... Ng7 {[%emt 0:01:12][%cal Bh5g7,Bg7e8,Be8d6,Bd6b5,Bb5d4][%mdl 32]} 17. Nd5 {[%emt 0:00:27]} Bh3+ {[%emt 0:00:43]} 18. Kg1 {[%emt 0:00:37]} Ne8 {[%emt 0:00:05]} 19. Rac1 {[%emt 0:00:22]} Kg7 {[%emt 0:00:17]} (19... Rac8 {simplifies} 20. Nd2 Nb4 21. Rxc8 Rxc8 22. Nxb4 Bxb4 23. a3 Bxd2 24. Rxd2 Rc1+) 20. a3 {[%emt 0:00:16]} Nd6 {[%emt 0:00:21]} 21. Nd2 {[%emt 0:00:22]} Rac8 {[%emt 0:00:18]} 22. f3 {[%emt 0:00:20]} (22. g4 $14 {was preferrable.}) 22... Be6 $11 {[%emt 0:00:03]} 23. Nc4 {[%emt 0:00:32]} Nb5 {[%emt 0:01:03]} 24. Kf2 {[%emt 0:01:17][%cal Oc4e5]} (24. Na5 {is interesting.} Nbd4 25. Bxd4 Nxd4 26. Kf2) 24... Nbd4 {[%emt 0:00:02]} 25. Bd3 {[%emt 0:00:32]} Bxd5 {[%emt 0:00:08]} 26. exd5 {[%emt 0:00:01]} Rxd5 {[%emt 0:00:03]} 27. Be4 {[%emt 0:00:01]} Rdd8 {[%emt 0:00:32]} 28. b4 {[%emt 0:00:17]} a6 {[%emt 0:00:36]} 29. Nb6 {[%emt 0:00:06]} Rc7 {[%emt 0:00:04]} 30. Rc4 {[%emt 0:00:21]} Ne6 {[%emt 0:00:11]} 31. Rdc1 {[%emt 0:00:12]} Rd6 {[%emt 0:00:02]} 32. a4 {[%emt 0:00:20] [#] Threatens to win with b5.} f5 {[%emt 0:00:03] Inhibits b5.} 33. Bd5 {[%emt 0:00:17]} f4 {[%emt 0:00:09] Against b5} ({Don't do} 33... Ned4 34. Bxd4 (34. f4 Re7 $14) 34... exd4 35. b5 axb5 36. axb5 $16) 34. gxf4 {[%emt 0:00:12]} exf4 {[%emt 0:00:01]} 35. Bd2 {[%emt 0:00:04] b5 is the strong threat.} (35. Bxf4 {simplifies} Nxf4 36. Rxf4 Re7 37. a5) 35... Rf7 {[%emt 0:00:28]} 36. Bc3+ {[%emt 0:00:14]} Kh6 $1 {[%emt 0:00:02]} 37. Re1 {[%emt 0:00:29]} Ncd8 {[%emt 0:00:04]} 38. a5 {[%emt 0:00:07] Black must now prevent Be5.} Rf5 {[%emt 0:00:05]} ({Black should play} 38... Bg7 $11) 39. Be4 $2 {[%emt 0:00:11] A strong pair of Bishops.} (39. Be5 $16 Rxd5 40. Nxd5) 39... Rh5 {[%emt 0:00:02]} 40. Kg2 {[%emt 0:00:23]} (40. Nc8 $1 $11 {remains equal.} Rd7 41. Nb6) 40... Bg7 $17 {[%emt 0:00:01]} 41. Bxg7+ {[%emt 0:00:20]} (41. Na4 $17) 41... Kxg7 {[%emt 0:00:01]} 42. Re2 {[%emt 0:00:09] Inhibits Rd2.} (42. Rc2 $17) 42... Kf6 $2 {[%emt 0:00:13]} (42... Rd1 $19 {( -> ...Rg5+)} 43. h3 Rg5+ 44. Kh2 Rgg1) 43. Rcc2 $15 {[%emt 0:00:27]} Rb5 {[%emt 0:00:06] aiming for ...Rdxb6.} (43... Rg5+ {feels hotter.} 44. Kf2 Rd1 45. Red2 Rgg1) 44. Red2 {[%emt 0:00:08]} Rxd2+ {[%emt 0:00:13]} 45. Rxd2 {[%emt 0:00:00]} Kg5 {[%emt 0:00:05]} (45... Rxb4 $2 46. Nd5+ Kf7 47. Nxb4 $18) 46. Nd5 {[%emt 0:00:07]} (46. Rd7 $1 $11 Rxb4 47. Rxh7 Rb2+ 48. Kf1) 46... Nc6 $17 {[%emt 0:00:04] White is on the road to losing.} 47. Rb2 {[%emt 0:00:23] [#]} (47. Rd1 $17 {is a better defense.}) 47... Nxa5 $1 $19 {[%emt 0:00:04]} 48. Nc3 {[%emt 0:00:04]} Nc4 {[%emt 0:00:05]} 49. Rb1 {[%emt 0:00:10]} Rb6 {[%emt 0:00:06]} 50. h4+ {[%emt 0:00:10]} Kxh4 {[%emt 0:00:03]} 51. Rh1+ {[%emt 0:00:01]} Kg5 {[%emt 0:00:01]} 52. Rxh7 {[%emt 0:00:01]} Rxb4 {[%emt 0:00:03]} 53. Nd5 $2 {[%emt 0:00:03]} (53. Bxb7 Nc5 54. Ne4+ Nxe4 55. Bxe4) 53... Rb2+ {[%emt 0:00:10]} 54. Kg1 {[%emt 0:00:09]} Nd2 {[%emt 0:00:02]} (54... Nd6 $142 55. Re7 Nd4) 55. Re7 $2 {[%emt 0:00:13]} (55. Rh2 Nc4 56. Rxb2 Nxb2 57. Nb4) 55... Nxe4 {[%emt 0:00:05]} 56. Rxe6 {[%emt 0:00:05][%mdl 4096] Endgame KRN-KRN} Nd2 {[%emt 0:00:07]} 57. Kg2 {[%emt 0:00:10]} Nc4+ {[%emt 0:00:02]} 58. Kh3 {[%emt 0:00:02]} Rf2 {[%emt 0:00:11]} 59. Re7 {[%emt 0:00:08]} Rxf3+ {[%emt 0:00:02]} 60. Kg2 {[%emt 0:00:01]} Rd3 {[%emt 0:00:08]} 61. Re5+ {[%emt 0:00:02]} Nxe5 {[%emt 0:00:02] Weighted Error Value: White=0.55/Black=0.33} 0-1

[Event "Romanian Rapid Open 2022"]
[Site "Sebes"]
[Date "2022.12.02"]
[Round "7.4"]
[White "Filip, Lucian-Ioan"]
[Black "Ileana, George"]
[Result "0-1"]
[ECO "D78"]
[WhiteElo "2370"]
[BlackElo "2343"]
[Annotator "TA"]
[PlyCount "120"]
[EventDate "2022.12.02"]
[EventType "rapid"]
[EventCountry "ROU"]
[SourceTitle "playchess.com"]
[Source "ChessBase"]
[SourceQuality "1"]
[TimeControl "600+5"]

{[%evp 12,120,10,9,33,27,49,34,71,55,61,62,65,64,56,35,60,35,18,15,18,-9,0,0,0,0,0,0,0,0,0,0,90,98,98,80,110,117,110,112,176,174,283,282,297,288,267,264,271,290,285,277,279,270,306,180,336,325,341,324,343,337,346,329,412,401,399,387,700,685,768,754,673,667,563,0,536,536,637,637,621,620,836,806,716,665,545,-8,2997,649,559,0,0,0,0,0,0,0,0,-5,-5,-151,-151,-151,-151,-151,-151,-151,-151,-151,-151]} 1. Nf3 {[%emt 0:00:01]} d5 {[%emt 0:00:01]} 2. d4 {[%emt 0:00:01]} Nf6 {[%emt 0:00:02]} 3. c4 {[%emt 0:00:01]} c6 {[%emt 0:00:01]} 4. g3 {[%emt 0:00:04]} g6 {[%emt 0:00:08]} 5. Bg2 {[%emt 0:00:03]} Bg7 {[%emt 0:00:02]} 6. O-O {[%emt 0:00:04]} O-O {[%emt 0:00:03]} 7. Ne5 {[%emt 0:00:05] 7.Nc3 is the modern continuation.} a5 {[%emt 0:01:50] D78: Fianchetto Grünfeld: 6 0-0 c6.} 8. Nc3 {[%emt 0:00:11]} Na6 {[%emt 0:00:05][%cal Bb8a6,Ba6b4,Bb4c6][%mdl 32] [#]} 9. cxd5 $146 {[%emt 0:10:20]} ({Predecessor:} 9. e3 dxc4 10. Nxc4 Nd5 11. Nxd5 cxd5 12. Ne5 Qd6 13. Bd2 b6 14. Rc1 Bb7 15. Bc3 {1-0 (38) Hauf,N (2014)-Reinfelder,F Forchheim 2013}) 9... cxd5 {[%emt 0:00:06] White is slightly better.} 10. Qb3 {[%emt 0:00:00][%cal Of1d1]} e6 {[%emt 0:00:11]} 11. Bg5 {[%emt 0:00:00]} h6 {[%emt 0:00:16]} 12. Bxf6 {[%emt 0:00:00]} Bxf6 {[%emt 0:00:02]} 13. f4 {[%emt 0:00:00]} Nb4 {[%emt 0:00:42]} 14. e3 {[%emt 0:00:00]} Bd7 {[%emt 0:00:26]} 15. a3 {[%emt 0:00:00]} Nc6 {[%emt 0:00:06]} 16. Qxb7 {[%emt 0:00:00]} Bxe5 {[%emt 0:00:18]} 17. dxe5 {[%emt 0:00:00]} Rb8 {[%emt 0:00:12]} 18. Qa6 $36 {[%emt 0:00:00][%mdl 2048] White has the initiative.} Rxb2 {[%emt 0:00:06]} 19. Rab1 {[%emt 0:00:00]} Qb8 {[%emt 0:00:09] aiming for ...Qb3.} 20. Nb5 $1 {[%emt 0:00:00][%cal Bc3b5,Bb5d6,Bd6b7,Bb7a5,Ba5b3,Bb3d4][%mdl 32]} Rxb1 {[%emt 0:02:23]} 21. Rxb1 {[%emt 0:00:00]} Qa8 {[%emt 0:00:10]} (21... Rc8 $11) 22. Qxa8 $16 {[%emt 0:00:00]} Rxa8 {[%emt 0:00:01]} 23. Nd6 {[%emt 0:00:00]} Rb8 {[%emt 0:00:10]} 24. Rxb8+ {[%emt 0:00:00]} Nxb8 {[%emt 0:00:02][%mdl 4096] Endgame KBN-KBN} 25. Nb7 {[%emt 0:00:00]} Na6 {[%emt 0:02:06]} (25... a4 $16) 26. Bf1 $18 {[%emt 0:00:00]} ({Resist} 26. Nxa5 $6 Nc5 $16) 26... Nc7 {[%emt 0:00:02]} (26... Nb8 $142 27. Nxa5 Ba4) 27. Nxa5 {[%emt 0:00:00]} Kf8 {[%emt 0:00:02]} 28. Nb3 {[%emt 0:00:00]} Ke7 {[%emt 0:00:10]} 29. Nd4 {[%emt 0:00:00]} Na8 {[%emt 0:00:13]} 30. Kf2 {[%emt 0:00:00]} Nb6 {[%emt 0:00:04]} 31. Ke1 {[%emt 0:00:00]} f6 {[%emt 0:00:10]} 32. Nf3 {[%emt 0:00:58]} Na4 {[%emt 0:00:58]} 33. Bd3 {[%emt 0:00:20]} (33. Kd2 $142) 33... Be8 $2 {[%emt 0:00:33]} (33... f5 {is a better defense.} 34. Nd4 Kd8) 34. Kd2 {[%emt 0:00:11]} Nc5 {[%emt 0:00:09]} 35. Kc3 {[%emt 0:00:20]} g5 {[%emt 0:00:08]} 36. Bc2 {[%emt 0:00:15]} gxf4 {[%emt 0:00:11]} 37. gxf4 {[%emt 0:00:05]} ({Much less strong is} 37. exf4 Nd7 38. exf6+ Kxf6 $18) 37... Bh5 {[%emt 0:00:19]} 38. exf6+ {[%emt 0:00:02]} Kxf6 {[%emt 0:00:01]} 39. Ne5 {[%emt 0:00:01]} Be8 $2 {[%emt 0:00:13]} (39... Ke7 40. a4 Kd6) 40. Kb4 {[%emt 0:00:05]} Na6+ {[%emt 0:00:19]} 41. Ka5 {[%emt 0:00:01]} Nc5 {[%emt 0:00:01]} 42. Kb6 {[%emt 0:00:02]} Na4+ {[%emt 0:00:14]} 43. Ka5 $2 {[%emt 0:00:20]} (43. Bxa4 $18 Bxa4 44. Nc6) 43... Nc3 $2 {[%emt 0:00:02][%mdl 8192]} (43... Nc5 $11 {and Black is okay.}) 44. Kb4 {[%emt 0:00:07]} Ne2 {[%emt 0:00:02]} 45. Bd3 {[%emt 0:00:05] Prevents d4.} Nc1 {[%emt 0:00:08]} 46. Bf1 {[%emt 0:00:06]} Kf5 {[%emt 0:00:02]} 47. Nd3 {[%emt 0:00:03]} Nxd3+ {[%emt 0:00:13]} 48. Bxd3+ {[%emt 0:00:01] KB-KB} Kg4 {[%emt 0:00:01]} 49. Bb5 $2 {[%emt 0:00:00]} ({White should try} 49. Be2+ $18 Kf5 50. Bf3) 49... Bg6 $2 {[%emt 0:00:02][%mdl 8192]} (49... Bxb5 $11 50. Kxb5 Kf3) 50. a4 {[%emt 0:00:01]} (50. Be2+ $142 Kh3 51. a4) 50... Kf3 {[%emt 0:00:04] [#]} 51. a5 $2 {[%emt 0:00:01]} ({White must play} 51. Bd7 $1 $18 {[%cal Rd7e6]} Bf5 52. a5 Kxe3 53. a6) 51... Kxe3 $11 {[%emt 0:00:01]} 52. a6 {[%emt 0:00:00] White threatens a7 and mate.} d4 $1 {[%emt 0:00:01]} 53. Bc6 {[%emt 0:00:30] White wants to mate with a7.} d3 $1 {[%emt 0:00:01]} 54. a7 {[%emt 0:00:01]} d2 $1 {[%emt 0:00:01]} 55. a8=Q {[%emt 0:00:02] [#] Intending Qa7+ and mate.} (55. a8=B d1=Q 56. Ka5 Qh5+ 57. f5 exf5 $19) (55. Ba4 $5 Be4 $8 56. Kc3 $11) 55... d1=Q {[%emt 0:00:02]} 56. Qa7+ {[%emt 0:00:09]} (56. Qa3+ $11 {was the only way to keep the balance.} Kxf4 57. Qg3+ Kf5 58. Qf2+ Ke5 59. Qg3+ Kf5 60. Qf2+ Ke5 61. Qg3+ Kf5) 56... Qd4+ $17 {[%emt 0:00:01] Black is clearly better.} 57. Qxd4+ {[%emt 0:00:01]} Kxd4 {[%emt 0:00:01]} 58. Bb7 {[%emt 0:00:12]} Ke3 {[%emt 0:00:03]} 59. Kc3 {[%emt 0:00:01]} Bf5 {[%emt 0:00:10]} 60. Bc6 {[%emt 0:00:15]} h5 {[%emt 0:00:45] Black used his chance.   Weighted Error Value: White=0.46/Black=0.43} 0-1

[Event "Romanian Rapid Open 2022"]
[Site "Sebes"]
[Date "2022.12.02"]
[Round "7.5"]
[White "Manea, Alexandru"]
[Black "Costachi, Mihnea"]
[Result "1/2-1/2"]
[ECO "E62"]
[WhiteElo "2339"]
[BlackElo "2476"]
[Annotator "TA"]
[PlyCount "51"]
[EventDate "2022.12.02"]
[EventType "rapid"]
[EventCountry "ROU"]
[SourceTitle "playchess.com"]
[Source "ChessBase"]
[SourceQuality "1"]
[TimeControl "600+5"]

{[%evp 20,38,31,28,38,12,12,1,12,10,6,13,10,0,0,0,0,0,1,6,0]} 1. d4 {[%emt 0:00:02]} Nf6 {[%emt 0:00:01]} 2. Nf3 {[%emt 0:00:02]} g6 {[%emt 0:00:01]} 3. g3 {[%emt 0:00:02]} Bg7 {[%emt 0:00:02]} 4. Bg2 {[%emt 0:00:02]} O-O {[%emt 0:00:02]} 5. O-O {[%emt 0:00:01]} d6 {[%emt 0:00:01]} 6. c4 {[%emt 0:00:04]} Nc6 {[%emt 0:00:02]} 7. Nc3 {[%emt 0:00:02]} Bf5 {[%emt 0:00:03]} 8. b3 {[%emt 0:00:50]} Ne4 {[%emt 0:00:02]} 9. Bb2 {[%emt 0:00:34]} Nxc3 {[%emt 0:00:02]} 10. Bxc3 {[%emt 0:00:02]} Be4 {[%emt 0:00:03]} 11. Qd2 $1 {[%emt 0:00:07] 11.Qd2 is better than 11.Rc1.} e5 {[%emt 0:00:23] E62: King's Indian: Fianchetto: 6...c6 and Panno Variation (6...Nc6) without ...a6.} 12. dxe5 {[%emt 0:00:44]} (12. d5 $5 {[%cal Rd5c6]} Ne7 13. Ng5 Bxg2 14. Kxg2 $11) 12... dxe5 {[%emt 0:01:32] The position is equal.} 13. Rad1 {[%emt 0:01:22] [#] And now Qe3 would win.} Qxd2 {[%emt 0:01:00]} 14. Rxd2 {[%emt 0:00:18]} Rad8 {[%emt 0:00:20]} 15. Rfd1 {[%emt 0:00:04][%cal Oc3e5]} f6 {[%emt 0:01:20]} 16. Ne1 {[%emt 0:00:33]} Bxg2 {[%emt 0:00:18]} 17. Kxg2 {[%emt 0:00:03]} Rxd2 {[%emt 0:00:19]} 18. Rxd2 {[%emt 0:00:01]} Rd8 {[%emt 0:00:07]} 19. Rxd8+ {[%emt 0:00:11]} Nxd8 {[%emt 0:00:06] [#] An even fight not without its subleties.   Weighted Error Value: White=0.05 (flawless) /Black=0.03 (flawless)} {Predecessor:} 20. Nd3 $146 Ne6 21. e4 Kf7 22. f4 exf4 23. gxf4 Bf8 24. Kf3 Nc5 25. Nf2 h5 26. Nd1 {0-1 (46) Halkias,S (2567)-Costachi,M (2471) Chess.com INT 2020} 1/2-1/2

[Event "Romanian Rapid Open 2022"]
[Site "Sebes"]
[Date "2022.12.02"]
[Round "7.6"]
[White "Jianu, Vlad-Cristian"]
[Black "Talu, Mircea"]
[Result "1-0"]
[ECO "E12"]
[WhiteElo "2516"]
[BlackElo "2327"]
[Annotator "TA"]
[PlyCount "55"]
[EventDate "2022.12.02"]
[EventType "rapid"]
[EventCountry "ROU"]
[SourceTitle "playchess.com"]
[Source "ChessBase"]
[SourceQuality "1"]
[TimeControl "600+5"]

{[%evp 25,55,18,18,0,71,37,75,75,238,228,391,225,224,233,230,229,620,615,622,623,612,610,899,892,1211,1201,1293,1411,29988,29989,29989,29990]} 1. d4 {[%emt 0:00:03]} Nf6 {[%emt 0:00:02]} 2. Nf3 {[%emt 0:00:01]} e6 {[%emt 0:00:07]} 3. c4 {[%emt 0:00:10]} b6 {[%emt 0:00:10]} 4. a3 {[%emt 0:00:03]} Bb7 {[%emt 0:00:05]} 5. Nc3 {[%emt 0:00:02]} d5 {[%emt 0:00:01]} 6. cxd5 {[%emt 0:00:02]} Nxd5 {[%emt 0:00:12]} 7. Qc2 {[%emt 0:00:02]} Nd7 {[%emt 0:00:20]} 8. e4 {[%emt 0:00:01]} Nxc3 {[%emt 0:00:02]} 9. bxc3 {[%emt 0:00:02]} Be7 {[%emt 0:00:19]} 10. Bd3 {[%emt 0:00:02]} c5 {[%emt 0:00:17]} 11. O-O {[%emt 0:00:03]} Rc8 {[%emt 0:00:21]} 12. Qe2 {[%emt 0:00:03]} O-O {[%emt 0:01:30]} 13. Bb2 {[%emt 0:00:07]} Qc7 {[%emt 0:01:41]} 14. Rad1 {[%emt 0:01:04] E12: Queen's Indian: Unusual White 4th moves, 4 a3, 4 Nc3 Bb7 5 a3 and 4 Nc3 Bb7 .} e5 {[%emt 0:01:13]} (14... Rfd8 $11) 15. Bb5 {[%emt 0:00:58]} exd4 {[%emt 0:01:23]} 16. cxd4 {[%emt 0:00:03] White is better.} cxd4 $2 {[%emt 0:01:34]} (16... a6 $16 {was necessary.} 17. Bxa6 c4) 17. Nxd4 $18 {[%emt 0:00:18] [#]} Bf6 $146 {[%emt 0:00:38] [#]} (17... Ne5 {might work better.} 18. Nf5 Rcd8) ({Predecessor:} 17... Rfd8 18. Nf5 Bf8 19. Nh6+ {1-0 (19) Molina,R (2417)-Maia,L (2307) Itajai 2014}) 18. Nf5 {[%emt 0:00:44]} (18. Ne6 $142 $1 {[%mdl 512]} Qc2 19. Rxd7 Qxe2 20. Bxe2 Bxb2 21. Nxf8) 18... Ne5 {[%emt 0:00:43]} 19. f4 {[%emt 0:00:32] Against a6} Ng6 {[%emt 0:00:21]} 20. e5 {[%emt 0:00:37][%cal Be4e5,Be5e6,Be6f7][%mdl 32]} Be7 {[%emt 0:00:08]} (20... Qc2) 21. Rd7 {[%emt 0:00:31]} Qc2 {[%emt 0:00:17]} 22. Nxe7+ {[%emt 0:01:11]} Nxe7 {[%emt 0:00:02]} 23. Rxb7 {[%emt 0:00:02]} Qc5+ {[%emt 0:00:23]} 24. Kh1 {[%emt 0:00:19]} Nd5 {[%emt 0:00:06]} 25. e6 {[%emt 0:00:22][%cal Oe2g4] Threatens to win with Qg4!} Ne3 {[%emt 0:00:09] Prevents Qg4.} 26. Re1 {[%emt 0:00:21]} Nd5 {[%emt 0:00:05]} 27. exf7+ {[%emt 0:00:28]} Kh8 {[%emt 0:00:03] [#]} 28. Qe5 $1 {[%emt 0:00:15] Black got outplayed after the opening.   Weighted Error Value: White=0.22 (precise) /Black=1.05} 1-0

[Event "Romanian Rapid Open 2022"]
[Site "Sebes"]
[Date "2022.12.02"]
[Round "7.7"]
[White "Ardelean, George-Catalin"]
[Black "Cosma, Elena-Luminita"]
[Result "1-0"]
[ECO "D00"]
[WhiteElo "2473"]
[BlackElo "2244"]
[Annotator "TA"]
[PlyCount "115"]
[EventDate "2022.12.02"]
[EventType "rapid"]
[EventCountry "ROU"]
[SourceTitle "playchess.com"]
[Source "ChessBase"]
[SourceQuality "1"]
[TimeControl "600+5"]

{[%evp 9,115,36,35,23,42,28,27,25,32,30,39,25,25,20,16,0,16,7,7,0,18,18,20,0,0,-33,-6,-69,-3,-64,-61,-95,-80,-120,-110,-112,-95,-99,-96,-123,-94,-186,-137,-186,-185,-199,-181,-375,-270,-259,-77,-58,-57,-108,0,0,0,-8,-12,-18,0,0,0,0,0,0,0,0,0,0,0,0,0,0,0,0,0,0,0,0,0,0,0,0,0,0,0,0,0,0,0,0,0,0,0,0,0,0,0,0,0,0,29978,29979,29979,29980,29979,29970]} 1. d4 {[%emt 0:00:03]} d5 {[%emt 0:00:01]} 2. Bf4 {[%emt 0:00:05]} c6 {[%emt 0:00:05]} 3. e3 {[%emt 0:00:04]} Qb6 {[%emt 0:00:16]} 4. Qc1 {[%emt 0:00:22]} Bf5 {[%emt 0:00:05]} 5. Nf3 {[%emt 0:00:14]} e6 {[%emt 0:00:23]} 6. Be2 {[%emt 0:00:21] D00: 1 d4 d5: Unusual lines.} h6 {[%emt 0:00:13]} 7. O-O {[%emt 0:00:11]} Nf6 {[%emt 0:00:23]} 8. c4 {[%emt 0:00:08] White has an edge.} Be7 {[%emt 0:00:45]} 9. Nc3 {[%emt 0:00:12] [#]} a5 $146 {[%emt 0:01:27]} ({Predecessor:} 9... O-O 10. c5 Qd8 11. b4 Nh5 12. Be5 Nd7 13. Nd2 Nhf6 14. Bg3 Ne4 15. Ncxe4 Bxe4 {1-0 (39) Korpa,B (2536)-Torngren,G (2243) Villorba 2021}) 10. Ne5 {[%emt 0:01:25]} Qd8 {[%emt 0:00:38]} 11. Qd1 {[%emt 0:01:20]} Nbd7 {[%emt 0:00:21]} 12. Qb3 {[%emt 0:00:32]} Ra7 {[%emt 0:00:29]} 13. Nxd7 {[%emt 0:01:10]} Nxd7 {[%emt 0:00:06]} 14. f3 {[%emt 0:01:21][%cal Rc4d5,Bf2f3,Bf3f4][%mdl 32]} Bg5 {[%emt 0:00:45]} 15. Bxg5 {[%emt 0:00:10]} Qxg5 {[%emt 0:00:04]} 16. f4 {[%emt 0:00:45]} Qe7 {[%emt 0:00:50][%cal Oa5a4]} 17. Rfe1 {[%emt 0:00:35]} O-O {[%emt 0:00:15]} (17... a4 $5 {[%cal Ra4b3]} 18. Qa3 Qxa3 19. bxa3 Nf6 $11) 18. Bf3 {[%emt 0:00:23]} (18. Qd1 $11) 18... Nf6 {[%emt 0:00:10]} (18... a4 $1 $15 19. Qd1 dxc4) 19. e4 {[%emt 0:00:51]} ({White should play} 19. c5 $11) 19... dxe4 $15 {[%emt 0:00:33]} 20. Bxe4 {[%emt 0:00:13]} Qd6 {[%emt 0:00:36][%csl LRd4,LRf4]} 21. Qb6 {[%emt 0:00:56]} Ra6 {[%emt 0:00:01]} 22. Qc5 {[%emt 0:00:04]} Qxf4 {[%emt 0:00:18]} (22... Nxe4 {seems wilder.} 23. Nxe4 Qxf4 24. Nd6 Qd2) 23. Bxf5 {[%emt 0:00:05]} exf5 {[%emt 0:00:02]} (23... Qxf5 $6 24. Qxf5 exf5 25. Re7 $15) (23... Qxf5 {simplifies} 24. Qxf5 exf5 25. Rad1 Rd8) 24. Qe5 {[%emt 0:00:10]} Qg5 {[%emt 0:00:10]} 25. Qc7 {[%emt 0:00:17]} (25. Qe3 $17 {was worth a try.}) 25... Raa8 {[%emt 0:00:22]} (25... Qd2 $19 26. Rad1 Qxb2) 26. Rad1 {[%emt 0:00:07]} (26. Qxb7 $17 Rab8 27. Qxc6) 26... Rae8 $19 {[%emt 0:01:13]} 27. Rxe8 {[%emt 0:00:01]} Rxe8 {[%emt 0:00:01]} 28. h3 $2 {[%emt 0:00:01]} (28. Qg3) 28... f4 {[%emt 0:00:23] Strongly threatening ...f3.} 29. Rf1 {[%emt 0:00:03] [#] Prevents f3.} f3 {[%emt 0:00:42]} (29... Nh5 $1 $19 {White must now prevent ...Qf6.} 30. Qxb7 Qf6) 30. Rxf3 $17 {[%emt 0:00:05][%cal Og1h2]} Qc1+ {[%emt 0:00:01]} (30... Re1+ {is more complex.} 31. Kh2 Qc1 32. Qc8+ Kh7) 31. Kh2 {[%emt 0:00:07] [#]} Qxb2 {[%emt 0:00:02]} (31... Re1 $1 $17 {[%cal Re1h1] ( -> ...Rh1+)} 32. Qc8+ (32. Qxa5 $2 {loses.} Rh1+ 33. Kg3 Qe1+ 34. Rf2 Rf1 $19) 32... Kh7 33. Qf5+ Kh8 34. Qc8+ (34. Qxa5 $2 {too greedy.} Rh1+ 35. Kg3 Qe1+ 36. Rf2 Rf1 $19) 34... Kh7 35. Qf5+ Kh8 36. Qc8+ (36. Qxa5 $2 Rh1+ 37. Kg3 Qe1+ 38. Rf2 Rf1 $19) 36... Kh7) 32. d5 $1 $11 {[%emt 0:00:07]} Qd2 {[%emt 0:00:49]} 33. dxc6 {[%emt 0:00:11]} bxc6 {[%emt 0:00:02]} 34. Qxc6 {[%emt 0:00:16] aiming for Rxf6.} Re3 {[%emt 0:00:18]} (34... Qd4 {simplifies} 35. Nd5 Qe5+ 36. Kg1 Nxd5 37. Qxd5 Qxd5 38. cxd5 Re5) 35. Qc8+ {[%emt 0:00:00]} Kh7 {[%emt 0:00:01]} 36. Qf5+ {[%emt 0:00:00]} Kg8 {[%emt 0:00:01]} (36... Kh8 {simplifies} 37. Qf4 Rd3 38. Qxd2 Rxd2 39. c5 Rd4) 37. Qc8+ {[%emt 0:00:06]} Kh7 {[%emt 0:00:01]} 38. Qf5+ {[%emt 0:00:01]} Kg8 {[%emt 0:00:00]} 39. Rxe3 {[%emt 0:00:02]} (39. Qf4 $5 Rd3 $8 40. Qb8+ Rd8 41. Qg3 $11) 39... Qxe3 {[%emt 0:00:01]} 40. Nd5 {[%emt 0:00:05]} Nxd5 {[%emt 0:00:01][%mdl 4096] Endgame} 41. Qc8+ {[%emt 0:00:04]} Kh7 {[%emt 0:00:02]} 42. Qf5+ {[%emt 0:00:01]} Kg8 {[%emt 0:00:01] Hoping for ...Qf4+.} 43. Qc8+ {[%emt 0:00:02]} Kh7 {[%emt 0:00:00]} 44. Qf5+ {[%emt 0:00:01]} Kg8 {[%emt 0:00:01] And now ...Qf4+ would win.} 45. cxd5 {[%emt 0:00:01] KQ-KQ} g6 {[%emt 0:00:10]} 46. Qc8+ {[%emt 0:00:06]} Kg7 {[%emt 0:00:01]} 47. Qc7 {[%emt 0:00:08] Prevents Qe5+.} Qd2 {[%emt 0:00:04]} 48. Qe5+ {[%emt 0:00:01]} (48. d6 $5 Qf4+ $8 49. Kg1 $11) 48... Kg8 {[%emt 0:00:02]} 49. d6 {[%emt 0:00:07]} a4 {[%emt 0:00:16]} 50. a3 {[%emt 0:00:01]} Kh7 {[%emt 0:00:09]} 51. h4 {[%emt 0:00:04]} h5 {[%emt 0:00:05]} 52. Qf6 {[%emt 0:00:25]} Qd5 {[%emt 0:00:01]} 53. Kg3 {[%emt 0:00:06]} Kg8 {[%emt 0:00:10]} 54. Qe7 {[%emt 0:00:03] Threatening mate with d7.} Qd3+ {[%emt 0:00:04]} 55. Kh2 {[%emt 0:00:01] White wants to mate with d7.} Qxa3 $2 {[%emt 0:00:14][%mdl 8192]} (55... Qd4 $11) 56. Qe8+ {[%emt 0:00:05] White mates.} Kg7 {[%emt 0:00:02]} 57. Qe5+ {[%emt 0:00:05]} Kh7 {[%emt 0:00:23]} 58. d7 {[%emt 0:00:14] White used his chance.   Weighted Error Value: White=0.15 (very precise) /Black=0.28 (precise)} ({Weaker is} 58. Qd4 Qb3 $16) 1-0